fUSD/lending_fUSD_20250828
["ID","MTS","AMOUNT","RATE_DAILY","PERIOD"]
[381829948,1756361449923,-379.26,0.00018993,2]
[381829949,1756361449935,-400.0,0.00018993,2]
[381829950,1756361449944,-386.3,0.00018993,2]
[381829951,1756361449954,-282.58,0.00018993,2]
[381829952,1756361449963,-400.0,0.00018993,2]
[381829953,1756361449973,-398.75,0.00018993,2]
[381829954,1756361449983,-400.0,0.00018993,2]
[381829955,1756361449993,-277.16,0.00018993,2]
[381829956,1756361450003,-525.15,0.00018993,2]
[381829957,1756361450013,-400.0,0.00018993,2]
[381829958,1756361450024,-245.75,0.00018993,2]
[381829959,1756361450033,-400.0,0.00018993,2]
[381829960,1756361450042,-400.0,0.00018993,2]
[381829961,1756361450051,-419.64,0.00018993,2]
[381829962,1756361450061,-400.0,0.00018993,2]
[381829963,1756361450070,-182.39,0.00018993,2]
[381829964,1756361450079,-295.98,0.00018993,2]
[381829965,1756361450088,-400.0,0.00018993,2]
[381829966,1756361450098,-400.0,0.00018993,2]
[381829967,1756361450107,-400.0,0.00018993,2]
[381829968,1756361450116,-518.09,0.00018993,2]
[381829969,1756361450125,-400.0,0.00018993,2]
[381829970,1756361450135,-400.0,0.00018993,2]
[381829971,1756361450144,-320.38,0.00018993,2]
[381829972,1756361450154,-400.0,0.00018993,2]
[381829973,1756361450164,-400.0,0.00018993,2]
[381829974,1756361450174,-151.47218777,0.00018993,2]
[381829975,1756361450183,-400.0,0.00018993,2]
[381829976,1756361450192,-446.72,0.00018993,2]
[381829977,1756361450201,-643.51,0.00018993,2]
[381829978,1756361450211,-1878.44,0.00018993,2]
[381829979,1756361450220,-166.1,0.00018993,2]
[381829980,1756361450229,-400.0,0.00018993,2]
[381829981,1756361450238,-400.0,0.00018993,2]
[381829982,1756361450248,-1799.22,0.00018993,2]
[381829983,1756361450257,-400.0,0.00018993,2]
[381829984,1756361450267,-168.0,0.00019022,2]
[381829985,1756361450277,-769.51,0.00019091,2]
[381829986,1756361450287,-400.0,0.00019092,2]
[381829987,1756361450296,-400.0,0.00019092,2]
[381829988,1756361450305,-238.27,0.00019092,2]
[381829989,1756361450314,-400.0,0.00019092,2]
[381829990,1756361450324,-400.0,0.00019092,2]
[381829991,1756361450333,-400.0,0.00019092,2]
[381829992,1756361450343,-400.0,0.00019092,2]
[381829993,1756361450395,-400.0,0.00019092,2]
[381829994,1756361450405,-400.0,0.00019092,2]
[381829995,1756361450414,-721.86,0.00019092,2]
[381829996,1756361450423,-521.06009779,0.00019093,2]
[381829997,1756361450432,-200.0,0.00019178,2]
[381829998,1756361450441,-500.0,0.00019178,2]
[381829999,1756361450450,-2000.0,0.000192,2]
[381830000,1756361450459,-326.6250789,0.00019265,2]
[381830001,1756361450468,-337.0,0.00019265,2]
[381830002,1756361450477,-400.0,0.00019265,2]
[381830003,1756361450486,-400.0,0.00019265,2]
[381830004,1756361450495,-400.0,0.00019265,2]
[381830005,1756361450506,-400.0,0.00019265,2]
[381830006,1756361450515,-400.0,0.00019265,2]
[381830007,1756361450524,-400.0,0.00019265,2]
[381830008,1756361450534,-400.0,0.00019265,2]
[381830009,1756361450543,-400.0,0.00019265,2]
[381830010,1756361450552,-400.0,0.00019265,2]
[381830011,1756361450562,-400.0,0.00019265,2]
[381830012,1756361450571,-400.0,0.00019265,2]
[381830013,1756361450580,-225.86846832,0.00019265,2]
[381830014,1756361450589,-485.03,0.00019265,2]
[381830015,1756361450599,-153.18,0.00019265,2]
[381830016,1756361450608,-400.0,0.00019265,2]
[381830017,1756361450617,-400.0,0.00019265,2]
[381830018,1756361450626,-400.0,0.00019265,2]
[381830019,1756361450636,-400.0,0.00019265,2]
[381830020,1756361450645,-400.0,0.00019265,2]
[381830021,1756361450655,-400.0,0.00019265,2]
[381830022,1756361450664,-206.47,0.00019265,2]
[381830023,1756361450673,-400.0,0.00019265,2]
[381830024,1756361450683,-281.06,0.00019265,2]
[381830025,1756361450692,-400.0,0.00019265,2]
[381830026,1756361450701,-269.78,0.00019265,2]
[381830027,1756361450710,-452.08,0.00019265,2]
[381830028,1756361450719,-400.0,0.00019265,2]
[381830029,1756361450729,-319.38,0.00019265,2]
[381830030,1756361450739,-400.0,0.00019265,2]
[381830031,1756361450747,-400.0,0.00019265,2]
[381830032,1756361450756,-400.0,0.00019265,2]
[381830033,1756361450767,-363.59,0.00019265,2]
[381830034,1756361450777,-400.0,0.00019265,2]
[381830035,1756361450787,-400.0,0.00019265,2]
[381830036,1756361450796,-400.0,0.00019265,2]
[381830037,1756361450805,-376.68,0.00019265,2]
[381830038,1756361450814,-400.0,0.00019265,2]
[381830039,1756361450824,-413.35,0.00019265,2]
[381830040,1756361450834,-214.98,0.00019265,2]
[381830041,1756361450843,-400.0,0.00019265,2]
[381830042,1756361450852,-353.08,0.00019265,2]
[381830043,1756361450861,-154.07,0.00019265,2]
[381830044,1756361450870,-377.29,0.00019265,2]
[381830045,1756361450879,-447.1,0.00019265,2]
[381830046,1756361450889,-400.0,0.00019265,2]
[381830047,1756361450898,-400.0,0.00019265,2]
[381830048,1756361450907,-208.95,0.00019265,2]
[381830049,1756361450915,-159.26,0.00019265,2]
[381830050,1756361450924,-400.0,0.00019265,2]
[381830051,1756361450937,-400.0,0.00019265,2]
[381830052,1756361450946,-386.53,0.00019265,2]
[381830053,1756361450956,-185.28,0.00019265,2]
[381830054,1756361450965,-400.0,0.00019265,2]
[381830055,1756361450974,-400.0,0.00019265,2]
[381830056,1756361450985,-269.79,0.00019265,2]
[381830057,1756361450994,-232.82,0.00019265,2]
[381830058,1756361451003,-289.33,0.00019265,2]
[381830059,1756361451014,-200.98,0.00019265,2]
[381830060,1756361451023,-400.0,0.00019265,2]
[381830061,1756361451033,-519.63,0.00019265,2]
[381830062,1756361451043,-256.04,0.00019265,2]
[381830063,1756361451052,-400.0,0.00019265,2]
[381830064,1756361451061,-227.83,0.00019265,2]
[381830065,1756361451071,-400.0,0.00019265,2]
[381830066,1756361451079,-400.0,0.00019265,2]
[381830067,1756361451089,-400.0,0.00019265,2]
[381830068,1756361451099,-400.0,0.00019265,2]
[381830069,1756361451108,-400.0,0.00019265,2]
[381830070,1756361451117,-483.05,0.00019265,2]
[381830071,1756361451127,-314.35,0.00019265,2]
[381830072,1756361451136,-400.0,0.00019265,2]
[381830073,1756361451145,-400.0,0.00019265,2]
[381830074,1756361451154,-539.12,0.00019265,2]
[381830075,1756361451164,-193.27,0.00019265,2]
[381830076,1756361451173,-502.33,0.00019265,2]
[381830077,1756361451183,-400.0,0.00019265,2]
[381830078,1756361451192,-400.0,0.00019265,2]
[381830079,1756361451201,-400.0,0.00019265,2]
[381830080,1756361451210,-541.7,0.00019265,2]
[381830081,1756361451219,-400.0,0.00019265,2]
[381830082,1756361451229,-292.0,0.00019265,2]
[381830083,1756361451238,-399.25,0.00019265,2]
[381830085,1756361451247,-400.0,0.00019265,2]
[381830086,1756361451256,-400.0,0.00019265,2]
[381830087,1756361451266,-400.0,0.00019265,2]
[381830089,1756361451276,-473.93,0.00019265,2]
[381830090,1756361451285,-179.22,0.00019265,2]
[381830091,1756361451295,-327.77,0.00019265,2]
[381830092,1756361451304,-489.75080169,0.00019265,2]
[381830093,1756361451313,-400.0,0.00019265,2]
[381830094,1756361451323,-387.07,0.00019265,2]
[381830095,1756361451332,-400.0,0.00019265,2]
[381830096,1756361451341,-400.0,0.00019265,2]
[381830097,1756361451351,-400.0,0.00019265,2]
[381830098,1756361451361,-400.0,0.00019265,2]
[381830099,1756361451370,-400.0,0.00019265,2]
[381830100,1756361451379,-400.0,0.00019265,2]
[381830101,1756361451388,-400.0,0.00019265,2]
[381830102,1756361451397,-400.0,0.00019265,2]
[381830103,1756361451407,-400.0,0.00019265,2]
[381830104,1756361451416,-400.0,0.00019265,2]
[381830105,1756361451425,-400.0,0.00019265,2]
[381830106,1756361451434,-280.86,0.00019265,2]
[381830107,1756361451444,-400.0,0.00019265,2]
[381830108,1756361451453,-400.0,0.00019265,2]
[381830109,1756361451463,-646.64,0.00019265,2]
[381830110,1756361451472,-306.01,0.00019265,2]
[381830111,1756361451482,-400.0,0.00019265,2]
[381830112,1756361451491,-400.0,0.00019265,2]
[381830113,1756361451501,-239.26,0.00019265,2]
[381830114,1756361451510,-400.0,0.00019265,2]
[381830115,1756361451519,-400.0,0.00019265,2]
[381830116,1756361451529,-400.0,0.00019265,2]
[381830117,1756361451538,-400.0,0.00019265,2]
[381830118,1756361451547,-400.0,0.00019265,2]
[381830119,1756361451557,-400.0,0.00019265,2]
[381830120,1756361451567,-385.3,0.00019265,2]
[381830121,1756361451576,-400.0,0.00019265,2]
[381830122,1756361451585,-549.27,0.00019265,2]
[381830123,1756361451594,-400.0,0.00019265,2]
[381830124,1756361451603,-400.0,0.00019265,2]
[381830125,1756361451612,-400.0,0.00019265,2]
[381830126,1756361451621,-400.0,0.00019265,2]
[381830127,1756361451631,-400.0,0.00019265,2]
[381830128,1756361451640,-436.74,0.00019265,2]
[381830129,1756361451649,-400.0,0.00019265,2]
[381830130,1756361451658,-400.0,0.00019265,2]
[381830131,1756361451667,-415.65,0.00019265,2]
[381830132,1756361451676,-400.0,0.00019265,2]
[381830133,1756361451686,-400.0,0.00019265,2]
[381830134,1756361451699,-399.13,0.00019265,2]
[381830135,1756361451708,-400.0,0.00019265,2]
[381830136,1756361451717,-400.0,0.00019265,2]
[381830137,1756361451726,-400.0,0.00019265,2]
[381830138,1756361451736,-606.4,0.00019265,2]
[381830139,1756361451746,-400.0,0.00019265,2]
[381830140,1756361451755,-400.0,0.00019265,2]
[381830141,1756361451764,-400.0,0.00019265,2]
[381830142,1756361451773,-400.0,0.00019265,2]
[381830143,1756361451784,-277.72,0.00019265,2]
[381830144,1756361451793,-412.02431197,0.00019265,2]
[381830145,1756361451803,-214.9,0.00019265,2]
[381830146,1756361451812,-400.0,0.00019265,2]
[381830147,1756361451825,-312.26,0.00019265,2]
[381830148,1756361451834,-400.0,0.00019265,2]
[381830149,1756361451844,-400.0,0.00019265,2]
[381830150,1756361451853,-393.42087778,0.00019265,2]
[381830151,1756361451862,-400.0,0.00019265,2]
[381830152,1756361451872,-400.0,0.00019265,2]
[381830153,1756361451881,-400.0,0.00019265,2]
[381830154,1756361451890,-400.0,0.00019265,2]
[381830155,1756361451899,-400.0,0.00019265,2]
[381830156,1756361451908,-400.0,0.00019265,2]
[381830157,1756361451918,-400.0,0.00019265,2]
[381830158,1756361451927,-390.1884497,0.00019265,2]
[381830159,1756361451942,-390.96,0.00019265,2]
[381830160,1756361451951,-400.0,0.00019265,2]
[381830161,1756361451960,-203.03,0.00019265,2]
[381830162,1756361451969,-495.44,0.00019265,2]
[381830163,1756361451982,-240.38,0.00019265,2]
[381830164,1756361451992,-264.01,0.00019265,2]
[381830165,1756361452002,-400.0,0.00019265,2]
[381830166,1756361452013,-400.0,0.00019265,2]
[381830167,1756361452023,-400.0,0.00019265,2]
[381830168,1756361452034,-400.0,0.00019265,2]
[381830169,1756361452043,-400.0,0.00019265,2]
[381830170,1756361452053,-400.0,0.00019265,2]
[381830171,1756361452061,-400.0,0.00019265,2]
[381830172,1756361452071,-400.0,0.00019265,2]
[381830173,1756361452081,-268.77,0.00019266,2]
[381830174,1756361452090,-400.0,0.00019266,2]
[381830175,1756361452099,-283.28,0.00019266,2]
[381830176,1756361452108,-253.65342747,0.00019266,2]
[381830177,1756361452117,-400.0,0.00019266,2]
[381830178,1756361452127,-400.0,0.00019266,2]
[381830179,1756361452137,-400.0,0.00019266,2]
[381830180,1756361452146,-400.0,0.00019266,2]
[381830181,1756361452155,-400.0,0.00019266,2]
[381830182,1756361452164,-400.0,0.00019266,2]
[381830183,1756361452173,-411.88441447,0.00019266,2]
[381830184,1756361452183,-319.7,0.00019266,2]
[381830185,1756361452192,-400.0,0.00019266,2]
[381830186,1756361452201,-255.8,0.00019266,2]
[381830187,1756361452210,-400.0,0.00019266,2]
[381830188,1756361452220,-368.8,0.00019266,2]
[381830189,1756361452230,-400.0,0.00019266,2]
[381830190,1756361452239,-416.87,0.00019266,2]
[381830191,1756361452248,-400.0,0.00019266,2]
[381830192,1756361452258,-344.2,0.00019266,2]
[381830193,1756361452267,-400.0,0.00019266,2]
[381830194,1756361452277,-345.6,0.00019266,2]
[381830195,1756361452286,-272.73,0.00019266,2]
[381830196,1756361452295,-400.0,0.00019266,2]
[381830197,1756361452305,-400.0,0.00019266,2]
[381830198,1756361452314,-233.86,0.00019266,2]
[381830199,1756361452324,-285.13,0.00019266,2]
[381830200,1756361452333,-400.0,0.00019266,2]
[381830201,1756361452343,-400.0,0.00019266,2]
[381830202,1756361452352,-493.64,0.00019266,2]
[381830203,1756361452361,-402.3,0.00019266,2]
[381830204,1756361452371,-400.0,0.00019266,2]
[381830205,1756361452381,-400.77937094,0.00019266,2]
[381830206,1756361452390,-400.0,0.00019266,2]
[381830207,1756361452399,-400.0,0.00019266,2]
[381830208,1756361452408,-400.0,0.00019266,2]
[381830209,1756361452417,-400.0,0.00019266,2]
[381830210,1756361452427,-400.0,0.00019266,2]
[381830211,1756361452436,-478.99,0.00019266,2]
[381830212,1756361452445,-461.73,0.00019266,2]
[381830213,1756361452454,-400.0,0.00019266,2]
[381830214,1756361452463,-400.0,0.00019266,2]
[381830215,1756361452473,-400.0,0.00019266,2]
[381830216,1756361452482,-400.0,0.00019266,2]
[381830217,1756361452492,-400.0,0.00019267,2]
[381830218,1756361452501,-222.3,0.00019267,2]
[381830219,1756361452511,-400.0,0.00019267,2]
[381830220,1756361452520,-400.0,0.00019267,2]
[381830221,1756361452531,-310.16,0.00019267,2]
[381830222,1756361452540,-400.0,0.00019267,2]
[381830223,1756361452549,-400.0,0.00019267,2]
[381830224,1756361452559,-400.0,0.00019267,2]
[381830225,1756361452568,-400.0,0.00019267,2]
[381830226,1756361452577,-400.0,0.00019267,2]
[381830227,1756361452586,-271.83,0.00019267,2]
[381830228,1756361452595,-400.34,0.00019267,2]
[381830229,1756361452604,-400.0,0.00019267,2]
[381830230,1756361452614,-346.36,0.00019267,2]
[381830231,1756361452623,-532.57,0.00019267,2]
[381830232,1756361452632,-493.14,0.00019267,2]
[381830233,1756361452642,-248.77,0.00019267,2]
[381830234,1756361452651,-428.22,0.00019267,2]
[381830235,1756361452661,-540.46936057,0.00019267,2]
[381830236,1756361452670,-446.72,0.00019267,2]
[381830237,1756361452679,-643.51,0.00019267,2]
[381830238,1756361452688,-1878.44,0.00019267,2]
[381830239,1756361452697,-400.0,0.00019267,2]
[381830240,1756361452706,-400.0,0.00019267,2]
[381830241,1756361452715,-1799.22,0.00019267,2]
[381830242,1756361452724,-981.6,0.00019267,2]
[381830243,1756361452733,-400.0,0.00019267,2]
[381830244,1756361452742,-501.50088441,0.00019321,2]
[381830245,1756361452751,-1000.0,0.00019321,2]
[381830246,1756361452759,-1000.0,0.00019321,2]
[381830247,1756361452768,-500.0,0.00019333,2]
[381830248,1756361452778,-769.51,0.00019365,2]
[381830249,1756361452788,-482.90522809,0.00019366,2]
[381830250,1756361452797,-400.0,0.00019366,2]
[381830251,1756361452806,-400.0,0.00019366,2]
[381830252,1756361452815,-400.0,0.00019366,2]
[381830253,1756361452824,-400.0,0.00019366,2]
[381830254,1756361452832,-400.0,0.00019366,2]
[381830255,1756361452841,-400.0,0.00019366,2]
[381830256,1756361452850,-400.0,0.00019366,2]
[381830257,1756361452860,-721.86,0.00019366,2]
[381830258,1756361452869,-1000.0,0.00019415,2]
[381830259,1756361452878,-173.83,0.00019428,2]
[381830260,1756361452888,-173.83,0.00019428,2]
[381830261,1756361452897,-1140.29124718,0.00019509,2]
[381830262,1756361452906,-1000.0,0.00019521,2]
[381830263,1756361452918,-1000.0,0.00019521,2]
[381830264,1756361452928,-1003.1706499,0.00019521,2]
[381830265,1756361452941,-426.51,0.00019539,2]
[381830266,1756361452951,-400.0,0.00019539,2]
[381830267,1756361452960,-400.0,0.00019539,2]
[381830268,1756361452969,-400.0,0.00019539,2]
[381830269,1756361452979,-400.0,0.00019539,2]
[381830270,1756361452990,-400.0,0.00019539,2]
[381830271,1756361453001,-400.0,0.00019539,2]
[381830272,1756361453012,-400.0,0.00019539,2]
[381830273,1756361453021,-400.0,0.00019539,2]
[381830274,1756361453031,-400.0,0.00019539,2]
[381830275,1756361453040,-400.0,0.00019539,2]
[381830276,1756361453049,-400.0,0.00019539,2]
[381830277,1756361453058,-400.0,0.00019539,2]
[381830278,1756361453066,-319.78,0.00019539,2]
[381830279,1756361453075,-400.0,0.00019539,2]
[381830280,1756361453085,-400.0,0.00019539,2]
[381830281,1756361453097,-448.71,0.00019539,2]
[381830282,1756361453105,-304.62,0.00019539,2]
[381830283,1756361453114,-400.0,0.00019539,2]
[381830284,1756361453123,-468.43,0.00019539,2]
[381830285,1756361453132,-466.92,0.00019539,2]
[381830286,1756361453142,-500.96879271,0.00019539,2]
[381830287,1756361453152,-459.41,0.00019539,2]
[381830288,1756361453161,-512.71,0.00019539,2]
[381830289,1756361453169,-400.0,0.00019539,2]
[381830290,1756361453179,-400.0,0.00019539,2]
[381830291,1756361453189,-400.0,0.00019539,2]
[381830292,1756361453198,-444.26,0.00019539,2]
[381830293,1756361453207,-533.63501189,0.00019539,2]
[381830294,1756361453216,-289.47,0.00019539,2]
[381830295,1756361453225,-215.41,0.00019539,2]
[381830296,1756361453236,-192.95,0.00019539,2]
[381830297,1756361453244,-400.0,0.00019539,2]
[381830298,1756361453254,-400.0,0.00019539,2]
[381830299,1756361453263,-400.0,0.00019539,2]
[381830300,1756361453273,-445.51,0.00019539,2]
[381830301,1756361453283,-514.36,0.00019539,2]
[381830302,1756361453293,-400.0,0.00019539,2]
[381830303,1756361453302,-307.69,0.00019539,2]
[381830304,1756361453312,-336.52,0.00019539,2]
[381830305,1756361453321,-400.0,0.00019539,2]
[381830306,1756361453331,-400.0,0.00019539,2]
[381830307,1756361453341,-400.0,0.00019539,2]
[381830308,1756361453351,-400.0,0.00019539,2]
[381830309,1756361453360,-400.0,0.00019539,2]
[381830310,1756361453370,-400.0,0.00019539,2]
[381830311,1756361453379,-400.0,0.00019539,2]
[381830312,1756361453388,-304.24,0.00019539,2]
[381830313,1756361453398,-646.64,0.00019539,2]
[381830314,1756361453407,-296.76,0.00019539,2]
[381830315,1756361453419,-400.0,0.00019539,2]
[381830316,1756361453429,-251.0,0.00019539,2]
[381830317,1756361453438,-400.0,0.00019539,2]
[381830318,1756361453447,-400.0,0.00019539,2]
[381830319,1756361453457,-402.35,0.00019539,2]
[381830320,1756361453466,-225.84,0.00019539,2]
[381830321,1756361453475,-207.1,0.00019539,2]
[381830322,1756361453484,-400.0,0.00019539,2]
[381830323,1756361453493,-549.27,0.00019539,2]
[381830324,1756361453502,-527.91,0.00019539,2]
[381830325,1756361453511,-400.0,0.00019539,2]
[381830326,1756361453520,-400.0,0.00019539,2]
[381830327,1756361453531,-400.0,0.00019539,2]
[381830328,1756361453540,-400.0,0.00019539,2]
[381830329,1756361453549,-436.74,0.00019539,2]
[381830330,1756361453558,-400.0,0.00019539,2]
[381830331,1756361453567,-415.65,0.00019539,2]
[381830332,1756361453579,-372.12,0.00019539,2]
[381830333,1756361453588,-442.42,0.00019539,2]
[381830334,1756361453597,-400.0,0.00019539,2]
[381830335,1756361453607,-400.0,0.00019539,2]
[381830336,1756361453616,-400.0,0.00019539,2]
[381830337,1756361453625,-606.4,0.00019539,2]
[381830338,1756361453634,-400.0,0.00019539,2]
[381830339,1756361453644,-400.0,0.00019539,2]
[381830340,1756361453653,-178.40556696,0.00019539,2]
[381830341,1756361453663,-400.0,0.00019539,2]
[381830342,1756361453672,-400.0,0.00019539,2]
[381830343,1756361453681,-400.0,0.00019539,2]
[381830344,1756361453690,-400.0,0.00019539,2]
[381830345,1756361453698,-400.0,0.00019539,2]
[381830346,1756361453707,-400.0,0.00019539,2]
[381830347,1756361453719,-400.0,0.00019539,2]
[381830348,1756361453730,-387.7822134,0.00019539,2]
[381830349,1756361453739,-400.0,0.00019539,2]
[381830350,1756361453748,-400.0,0.00019539,2]
[381830351,1756361453757,-400.0,0.00019539,2]
[381830352,1756361453766,-400.0,0.00019539,2]
[381830353,1756361453775,-400.0,0.00019539,2]
[381830354,1756361453784,-400.0,0.00019539,2]
[381830355,1756361453793,-272.97,0.00019539,2]
[381830356,1756361453802,-241.5733336,0.00019539,2]
[381830357,1756361453995,-85.2166664,0.00019539,2]
[381830358,1756361454005,-173.16,0.00019539,2]
[381830359,1756361454020,-400.0,0.00019539,2]
[381830360,1756361454029,-363.52,0.00019539,2]
[381830361,1756361454038,-400.0,0.0001954,2]
[381830362,1756361454048,-400.0,0.0001954,2]
[381830363,1756361454057,-62.3008782,0.0001954,2]
[381830364,1756361454163,-400.0,0.00018717,2]
[381830365,1756361454173,-400.0,0.00018718,2]
[381830366,1756361454184,-400.0,0.00019265,2]
[381830367,1756361454193,-400.0,0.00019265,2]
[381830368,1756361454202,-400.0,0.00019539,2]
[381830369,1756361454211,-400.0,0.00019539,2]
[381830370,1756361454220,-210.38990317,0.0001954,2]
[381830371,1756361454232,-400.0,0.0001954,2]
[381830372,1756361454243,-250.91,0.0001954,2]
[381830373,1756361454255,-523.3,0.0001954,2]
[381830374,1756361454267,-374.55009683,0.0001954,2]
[381830375,1756361454407,-25.44990317,0.0001954,2]
[381830376,1756361454417,-528.36525198,0.0001954,2]
[381830377,1756361454428,-400.0,0.0001954,2]
[381830378,1756361454437,-11.69494059,0.0001954,2]
[381830379,1756361454644,-400.0,0.00018717,2]
[381830380,1756361454653,-94.61771879,0.00018991,2]
[381830381,1756361454664,-305.38228121,0.00018991,2]
[381830382,1756361454673,-497.55768988,0.00018991,2]
[381830383,1756361454683,-400.0,0.00019265,2]
[381830384,1756361454692,-350.62,0.00019539,2]
[381830385,1756361454701,-18.76585846,0.0001954,2]
[381830386,1756361454713,-369.53920095,0.0001954,2]
[381830387,1756361454723,-164.49,0.0001954,2]
[381830388,1756361454732,-208.50612319,0.0001954,2]
[381830389,1756361454741,-400.0,0.0001954,2]
[381830390,1756361454750,-377.95391691,0.0001954,2]
[381830391,1756361454760,-400.0,0.0001954,2]
[381830392,1756361454769,-400.0,0.0001954,2]
[381830393,1756361454778,-400.0,0.0001954,2]
[381830394,1756361454788,-400.0,0.0001954,2]
[381830395,1756361454797,-375.25,0.0001954,2]
[381830396,1756361454806,-280.65,0.0001954,2]
[381830397,1756361454815,-400.0,0.0001954,2]
[381830398,1756361454824,-478.99,0.0001954,2]
[381830399,1756361454834,-400.0,0.0001954,2]
[381830400,1756361454846,-400.0,0.0001954,2]
[381830401,1756361454855,-400.0,0.00019541,2]
[381830402,1756361454864,-318.08,0.00019541,2]
[381830403,1756361454874,-231.19,0.00019541,2]
[381830404,1756361454883,-367.91,0.00019541,2]
[381830405,1756361454892,-452.48,0.00019541,2]
[381830406,1756361454901,-402.06,0.00019541,2]
[381830407,1756361454911,-165.05,0.00019541,2]
[381830408,1756361454920,-446.72,0.00019541,2]
[381830409,1756361454929,-643.51,0.00019541,2]
[381830410,1756361454944,-1878.44,0.00019541,2]
[381830411,1756361454953,-400.0,0.00019541,2]
[381830412,1756361454963,-400.0,0.00019541,2]
[381830413,1756361454972,-1799.22,0.00019541,2]
[381830414,1756361454982,-981.6,0.00019541,2]
[381830415,1756361454992,-400.0,0.00019541,2]
[381830416,1756361455001,-769.51,0.00019639,2]
[381830417,1756361455012,-400.0,0.0001964,2]
[381830418,1756361455021,-400.0,0.0001964,2]
[381830419,1756361455031,-226.97,0.0001964,2]
[381830420,1756361455040,-400.0,0.0001964,2]
[381830421,1756361455050,-400.0,0.0001964,2]
[381830422,1756361455060,-371.27934497,0.0001964,2]
[381830423,1756361455071,-400.0,0.0001964,2]
[381830424,1756361455082,-721.86,0.0001964,2]
[381830425,1756361455094,-800.0,0.00019712,2]
[381830426,1756361455104,-2100.0,0.00019712,2]
[381830427,1756361455114,-400.0,0.00019813,2]
[381830428,1756361455123,-400.0,0.00019813,2]
[381830429,1756361455132,-400.0,0.00019813,2]
[381830430,1756361455141,-400.0,0.00019813,2]
[381830431,1756361455151,-400.0,0.00019813,2]
[381830432,1756361455161,-400.0,0.00019813,2]
[381830433,1756361455170,-528.39,0.00019813,2]
[381830434,1756361455179,-176.83640573,0.00019813,2]
[381830435,1756361455188,-205.3,0.00019813,2]
[381830436,1756361455197,-400.0,0.00019813,2]
[381830437,1756361455207,-400.0,0.00019813,2]
[381830438,1756361455216,-400.0,0.00019813,2]
[381830439,1756361455227,-151.71,0.00019813,2]
[381830440,1756361455236,-166.84,0.00019813,2]
[381830441,1756361455246,-328.49294643,0.00019813,2]
[381830442,1756361455255,-400.0,0.00019813,2]
[381830443,1756361455265,-400.0,0.00019813,2]
[381830444,1756361455274,-400.0,0.00019813,2]
[381830445,1756361455284,-400.0,0.00019813,2]
[381830446,1756361455293,-400.0,0.00019813,2]
[381830447,1756361455302,-400.0,0.00019813,2]
[381830448,1756361455312,-400.0,0.00019813,2]
[381830449,1756361455322,-400.0,0.00019813,2]